Cogmind - Beta 14 @@@ ROGUE MODE // 2024.10.07 @ 19:11:41 Player: siona Result: Destroyed by D-53 Grenadier with Mini Grenade Launcher Performance ------------- Evolutions (1) 500 Regions Visited (4) 800 Robots Destroyed (42) 210 Value Destroyed (814) 814 Prototype IDs (0) 0 Alien Tech Used (0) 0 Bonus (0) 0 TOTAL SCORE: 2324 Bonus ------- None Cogmind --------- Core Integrity 0/400 Matter 293/300 Energy 265/265 System Corruption 0% Temperature Cool (-100) Movement Treading (160) Location -9/Mines Parts ------- > --- POWER (1) -------- Improved Ion Engine > --- PROPULSION (2) --- Light Treads > --- UTILITY (4) ------ Cryofiber Web Small Storage Unit Signal Interpreter Light Armor Plating > --- WEAPON (2) ------- Light Assault Rifle Light Cannon > --- INVENTORY (8) ---- Light Ion Engine Flight Unit Sensor Array Seismic Detector Peak State ------------ > --- POWER ------------ Reinforced Ion Engine > --- PROPULSION ------- Wheel Compact Wheel > --- UTILITY ---------- Cryofiber Web Improved Heat Sink Huge Storage Unit Signal Interpreter > --- WEAPON ----------- Pulse Rifle Pulse Rifle > --- INVENTORY -------- Light Ion Engine Aluminum Leg Wheel Flight Unit Cryofiber Web Small Storage Unit Sensor Array Signal Interpreter Seismic Detector Light Armor Plating Pulse Rifle Pulse Rifle Light Assault Rifle Light Cannon [Rating: 20] Favorites ----------- Power Light Nuclear Core Engine Reinforced Ion Engine Power Core Light Nuclear Core Propulsion Wheel Treads Light Treads Leg Aluminum Leg Wheel Wheel Utility Huge Storage Unit Device Improved Heat Sink Storage Huge Storage Unit Processor Signal Interpreter Protection Light Armor Plating Weapon Light Assault Rifle Energy Gun Pulse Rifle Ballistic Gun Light Assault Rifle Ballistic Cannon Light Cannon Build | -11 -10 -10 -9 -9 ------- Run | Yrd Mat Min Mat Min Slots Evolved 2 | . . . 2 . Power . | . . . . . Propulsion . | . . . . . Utility 2 | . . . 2 . Weapon . | . . . . . Parts Attached 38 | 6 6 1 19 6 Power 6 | 1 1 . 4 . Engine 5 | 1 . . 4 . Core 1 | . 1 . . . Reactor . | . . . . . Propulsion 13 | 2 3 . 6 2 Treads 1 | . . . . 1 Leg 4 | 2 1 . . 1 Wheel 8 | . 2 . 6 . Hover . | . . . . . Flight . | . . . . . Utility 10 | 1 2 . 4 3 Device 4 | . 1 . 2 1 Storage 3 | 1 1 . . 1 Processor 1 | . . . 1 . Hackware . | . . . . . Protection 2 | . . . 1 1 Artifact . | . . . . . Weapon 9 | 2 . 1 5 1 Energy Gun 4 | . . . 4 . Energy Cannon . | . . . . . Ballistic Gun 3 | 2 . . . 1 Ballistic Cannon 2 | . . 1 1 . Launcher . | . . . . . Special Weapon . | . . . . . Impact Weapon . | . . . . . Slashing Weapon . | . . . . . Piercing Weapon . | . . . . . Special Melee Weapon . | . . . . . Unidentified Prototypes . | . . . . . Parts Lost 17 | . 2 1 12 2 Power 2 | . . . 2 . Propulsion 8 | . 1 1 4 2 Utility 3 | . . . 3 . Weapon 4 | . 1 . 3 . Highest Loss Streak 6 | . 1 1 6 4 To Critical Strikes . | . . . . . Average Slot Usage (%) 90 | . 91 85 93 87 Engine 6 | . 6 . 8 11 Core 6 | . 7 14 1 . Leg 6 | . 18 . . 10 Wheel 16 | . 7 24 20 . Device 13 | . 7 14 17 9 Storage 12 | . 14 14 11 11 Processor 4 | . . . 9 11 Protection 1 | . . . 1 9 Energy Gun 6 | . . . 16 . Ballistic Gun 12 | . 27 14 1 11 Ballistic Cannon 3 | . . 3 3 11 Peak Build Rating 20 | 6 11 10 20 12 Average Rating 12 | 4 8 9 16 10 On Entrance 7 | . 6 10 10 10 Naked Turns . | . . . . . Heaviest Build 99 | 13 89 90 99 20 Greatest Support 26 | 20 20 20 26 20 Greatest Overweight (x) 9 | . 8 8 9 1 Average Overweight (x) 2 | . 1 4 3 . Largest Inventory Capacity 25 | 8 25 25 25 25 Average Capacity 20 | 5 13 25 25 10 Most Carried 16 | 4 8 8 16 11 Average Carried 8 | 1 7 7 11 4 Final Capacity 25 | 8 25 25 25 8 Final Carried 11 | 4 8 7 11 4 Class Distribution -------------------- 89% | Mutant 10% | Scavenger-Mutant Dominant Class ---------------- Mutant | -10/Materials Mutant | -10/Mines Mutant | -9/Materials Scavenger-Mutant | -9/Mines Resources | -11 -10 -10 -9 -9 ----------- Run | Yrd Mat Min Mat Min Matter Collected 819 | 147 238 57 294 83 Remotely . | . . . . . Salvage Created 1006 | . 304 34 628 40 Parts 85 | . 27 5 47 6 Haulers Intercepted . | . . . . . Recyclers Shooed 1 | . 1 . . . Parts Field Recycled . | . . . . . Retrieved Matter . | . . . . . Parts Self-Destructed . | . . . . . Prevented . | . . . . . Kills | -11 -10 -10 -9 -9 ------- Run | Yrd Mat Min Mat Min Combat Hostiles Destroyed 30 | . 8 3 16 3 Guns 24 | . 8 1 13 2 Cannons 5 | . . 2 2 1 Classes Destroyed 8 | . 4 . 4 . Worker 5 | . 2 . 2 1 Builder 2 | . 1 . 1 . Recycler 1 | . . . 1 . Operator 1 | . . . 1 . Watcher 3 | . . . 3 . Swarmer 15 | . 3 3 6 3 Grunt 12 | . 5 . 7 . Sentry 3 | . . . 3 . Best Kill Streak 6 | . 3 3 6 3 Combat Bots Only 5 | . 3 3 5 3 Max Kills in Single Turn 2 | . 1 1 2 1 Gunslinging . | . . . . . Exploded . | . . . . . Melee . | . . . . . Uniques/NPCs Destroyed . | . . . . . Combat | -11 -10 -10 -9 -9 -------- Run | Yrd Mat Min Mat Min Hostile Shots Fired 239 | . 49 19 145 26 Missed 46 | . 11 3 27 5 Damage Taken 2073 | . 449 123 1231 270 Core 519 | . 85 15 334 85 Absorbed by Shields . | . . . . . Core Remaining (%) 80 | 100 . 60 . . Volleys Fired 108 | . 24 8 68 8 Largest 2 | . 2 2 2 2 Hottest 126 | . 40 55 126 55 Shots Fired 208 | . 49 14 129 16 Gun 183 | . 49 9 117 8 Cannon 25 | . . 5 12 8 Launcher . | . . . . . Special . | . . . . . Kinetic 94 | . 49 14 15 16 Thermal 114 | . . . 114 . Explosive . | . . . . . Electromagnetic . | . . . . . Robot Hit Streak 37 | . 6 2 37 6 Robot Miss Streak 5 | . 4 5 3 1 Penetration Max . | . . . . . Secondary Targets 3 | . . . 3 . Max Gunslinging Chain 1 | . . . 1 . Shots Hit Robots 132 | . 30 4 87 11 Core Hits 56 | . 18 3 29 6 Critical Kills . | . . . . . Critical Parts Destroyed . | . . . . . Critical Strikes 11 | . . 1 10 . Burn 10 | . . . 10 . Blast 1 | . . 1 . . Melee Attacks . | . . . . . Impact . | . . . . . Slashing . | . . . . . Piercing . | . . . . . Sneak Attacks . | . . . . . Combat Hostiles . | . . . . . Follow-up Attacks . | . . . . . Damage Inflicted 2077 | . 352 63 1519 143 Guns 1822 | . 352 8 1404 58 Cannons 250 | . . 55 110 85 Explosions . | . . . . . Melee . | . . . . . Ramming 5 | . . . 5 . Kinetic 668 | . 352 63 110 143 Thermal 1404 | . . . 1404 . Explosive . | . . . . . Electromagnetic . | . . . . . Impact . | . . . . . Slashing . | . . . . . Piercing . | . . . . . Highest Corruption 1 | . 1 1 . . Average Corruption 1 | . 1 1 . . Corruption Purged . | . . . . . Corruption Blocked . | . . . . . Effects 9 | . 4 5 . . Matter Fused 1 | . 1 . . . Heat Flow Errors 2 | . 1 1 . . Energy Discharges 2 | . 1 1 . . Data Loss (minor) 1 | . . 1 . . Misfires 2 | . 1 1 . . Alerts 1 | . . 1 . . Overload Shots . | . . . . . Overflow Damage . | . . . . . Projectiles . | . . . . . Explosions . | . . . . . Melee . | . . . . . Knockbacks 5 | . . . 3 2 Impact . | . . . . . Kinetic 4 | . . . 2 2 Secondary 1 | . . . 1 . Self-Inflicted Damage 2 | . . . 2 . Shots . | . . . . . Rammed 1 | . . . 1 . Targets Rammed 1 | . . . 1 . Kicked . | . . . . . Crushed . | . . . . . Highest Temperature 559 | . 258 244 559 10 Average Temperature 174 | . 54 132 211 7 Received Heat Transfer 537 | . 204 . 333 . Effects 12 | . . . 12 . Shutdowns 1 | . . . 1 . Energy Bleed 2 | . . . 2 . Interference 5 | . . . 5 . Matter Decay 2 | . . . 2 . Damage (minor) 2 | . . . 2 . Siege Activations . | . . . . . Robots Corrupted . | . . . . . Combat Hostiles . | . . . . . Parts Fried . | . . . . . Impact Corruptions . | . . . . . Robots Melted 1 | . . . 1 . Combat Hostiles 1 | . . . 1 . Parts Melted 6 | . . . 6 . Heat Transferred 3811 | . . . 3811 . Parts Sabotaged . | . . . . . Parts Stolen . | . . . . . Parts Stripped . | . . . . . Power Chain Reactions . | . . . . . Alert | -11 -10 -10 -9 -9 ------- Run | Yrd Mat Min Mat Min Peak Influence 372 | . 215 70 372 193 Initial 113 | . . 17 27 113 Average 104 | . 95 29 145 185 Maximum Alert Level 1 | . 1 . 1 . Low Security (%) 80 | 100 80 100 62 100 Level 1 19 | . 19 . 37 . Level 2 . | . . . . . Level 3 . | . . . . . Level 4 . | . . . . . Level 5 . | . . . . . High Security . | . . . . . Max Security . | . . . . . Squads Dispatched 4 | . 2 . 2 . Investigation 1 | . 1 . . . Extermination . | . . . . . Reinforcement 3 | . 1 . 2 . Assault . | . . . . . Garrison . | . . . . . Intercept . | . . . . . Searches Triggered . | . . . . . Construction Impeded 1 | . . . 1 . Haulers Reinforced . | . . . . . Active Scanning Responses . | . . . . . Cargo Convoy Interrupts . | . . . . . Stealth | -11 -10 -10 -9 -9 --------- Run | Yrd Mat Min Mat Min Distress Signals 3 | . 1 . 2 . Communications Jammed . | . . . . . Distress Signals . | . . . . . Times Spotted 60 | . 16 3 31 10 Peak Tracking Total 10 | . 4 3 6 10 Tactical Retreats 6 | . 1 . 5 . Traps | -11 -10 -10 -9 -9 ------- Run | Yrd Mat Min Mat Min Traps Triggered 2 | . 2 . . . Indirectly . | . . . . . Trap Hack Attempts . | . . . . . Triggered . | . . . . . Disarmed . | . . . . . Reprogrammed . | . . . . . Reused . | . . . . . Traps Extracted . | . . . . . Installed . | . . . . . Triggered . | . . . . . Machines | -11 -10 -10 -9 -9 ---------- Run | Yrd Mat Min Mat Min Machines Disabled 1 | . . . 1 . Max in Single Turn 1 | . . . 1 . Machines Repaired . | . . . . . Machines Dismantled . | . . . . . Machines Sabotaged . | . . . . . Overloaded Fab Kills . | . . . . . Hacking | -11 -10 -10 -9 -9 --------- Run | Yrd Mat Min Mat Min Machines Accessed 2 | . . 1 1 . Terminals 1 | . . 1 . . Fabricators . | . . . . . Repair Stations 1 | . . . 1 . Recycling Units . | . . . . . Scanalyzers . | . . . . . Garrison Access . | . . . . . Total Hacks 6 | . . 4 2 . Successful 1 | . . . 1 . Failed 5 | . . 4 1 . Catastrophic 2 | . . 2 . . Database Lockouts . | . . . . . Manual 3 | . . 3 . . Terminals 4 | . . 4 . . Fabricators . | . . . . . Repair Stations 2 | . . . 2 . Recycling Units . | . . . . . Scanalyzers . | . . . . . Garrison Access . | . . . . . Terminal Hacks . | . . . . . Fabricator Hacks . | . . . . . Repair Station Hacks 1 | . . . 1 . Scan Component 1 | . . . 1 . Recycling Unit Hacks . | . . . . . Scanalyzer . | . . . . . Garrison Access Hacks . | . . . . . Unauthorized Hacks . | . . . . . Terminals . | . . . . . Fabricators . | . . . . . Repair Stations . | . . . . . Recycling Units . | . . . . . Scanalyzers . | . . . . . Garrison Access . | . . . . . Data Cores Recovered . | . . . . . Used . | . . . . . Hacking Detections 2 | . . 1 1 . Full Trace Events 1 | . . 1 . . Feedback Events . | . . . . . Feedback Blocked . | . . . . . Robot Schematics Acquired . | . . . . . Robots Built . | . . . . . Authchips . | . . . . . Time . | . . . . . Total Robot Build Rating . | . . . . . Part Schematics Acquired . | . . . . . Parts Built . | . . . . . Authchips . | . . . . . Time . | . . . . . Total Part Build Rating . | . . . . . Parts Repaired . | . . . . . Time . | . . . . . Parts Recycled . | . . . . . Recycled Matter . | . . . . . Retrieved Matter . | . . . . . Retrieved Components . | . . . . . Parts Scanalyzed . | . . . . . Part Schematics Acquired . | . . . . . Parts Damaged . | . . . . . Bothacking | -11 -10 -10 -9 -9 ------------ Run | Yrd Mat Min Mat Min Used RIF Installer . | . . . . . Robots Hacked . | . . . . . Non-combat . | . . . . . Combat . | . . . . . Robot Hacks Applied . | . . . . . Relay Couplers Released . | . . . . . Fabnet Peak Effective % . | . . . . . Robots Rewired . | . . . . . Allies Hacked . | . . . . . Hacks Repelled . | . . . . . Allies | -11 -10 -10 -9 -9 -------- Run | Yrd Mat Min Mat Min Total Allies . | . . . . . Largest Group . | . . . . . Highest-Rated Group . | . . . . . Highest-Rated Ally . | . . . . . Total Orders . | . . . . . Ally Attacks . | . . . . . Total Damage . | . . . . . Kills . | . . . . . Allies Corrupted . | . . . . . Allies Melted . | . . . . . Intel | -11 -10 -10 -9 -9 ------- Run | Yrd Mat Min Mat Min Robot Analysis Total . | . . . . . Derelict Logs Recovered . | . . . . . Drone Launches . | . . . . . Drone Recoveries . | . . . . . Exploration | -11 -10 -10 -9 -9 ------------- Run | Yrd Mat Min Mat Min Turns Passed 2397 | 64 639 566 907 221 Spaces Moved 1252 | 48 405 306 424 69 Core 9 | 9 . . . . Treads 22 | . . . . 22 Legs 365 | 39 279 . . 47 Wheels 856 | . 126 306 424 . Hover . | . . . . . Flight . | . . . . . Fastest Speed 50 | 50 120 140 135 160 Average Speed 140 | 106 132 150 139 180 Slowest Speed 215 | 120 200 200 215 190 Overloaded Moves . | . . . . . Propulsion Burnouts . | . . . . . Robots Hopped . | . . . . . Cave-ins Triggered . | . . . . . Exploration Rate (%) 31 | 3 56 49 37 12 Regions Visited 4 Branch Regions 2 Pre-discovered Areas . | . . . . . Known Exits Taken . | . . . . . Unknown Exits Taken 4 | 1 1 1 1 . Scrap Searched 2 | . . 1 . 1 Spaces Dug . | . . . . . Terrain Destroyed . | . . . . . Melee . | . . . . . Projectile . | . . . . . AOE . | . . . . . Terrain Rammed . | . . . . . Walls Destroyed . | . . . . . Machines Disabled . | . . . . . Actions | -11 -10 -10 -9 -9 --------- Run | Yrd Mat Min Mat Min Total 1682 | 57 466 399 608 152 Wait 258 | . 22 85 86 65 Move 1248 | 47 404 305 423 69 Hop . | . . . . . Pick Up 18 | 4 6 . 8 . Fast Attach 15 | 6 2 . 6 1 Attach 14 | . 1 1 9 3 Detach 1 | . . . 1 . Swap 9 | . 3 . 4 2 Drop 10 | . 4 . 2 4 Fire 108 | . 24 8 68 8 Melee . | . . . . . Ram 1 | . . . 1 . Kick . | . . . . . Crush . | . . . . . Escape Stasis . | . . . . . Rewire . | . . . . . Trap . | . . . . . Miscellaneous . | . . . . . Route ------- -11/Scrapyard -10/Materials (discovered 2 exits: *Mat / *Min) -10/Mines -9/Materials -9/Mines History --------- Turn | Location | Event 3 | -11/Scrapyard | Discovered new exit (range 15) 65 | -11/Scrapyard | Entered Materials 313 | -10/Materials | Build established: Mutant 406 | -10/Materials | Discovered new exit (range 8) 481 | -10/Materials | Discovered new exit (range 8) 704 | -10/Materials | Entered Mines 722 | -10/Mines | Met a Derelict bent on vengeance 1237 | -10/Mines | Discovered new exit (range 13) 1270 | -10/Mines | Entered Materials 1270 | -9/Materials | Evolved 2 slots: Utility x2 2022 | -9/Materials | Core integrity fell below 50% 2074 | -9/Materials | Lost 6 parts (1p3n1u1w) 2141 | -9/Materials | Discovered new exit (range 15) 2171 | -9/Materials | Core integrity fell below 20% 2177 | -9/Materials | Entered Mines 2217 | -9/Mines | Lost 4 parts (2n2u) 2349 | -9/Mines | Assembled infested the area 2398 | -9/Mines | Destroyed by D-53 Grenadier with Mini Grenade Launcher Last Messages --------------- 02291_ U-05 Engineer builds a Wall. 02299_ U-05 Engineer lays Concrete. 02304_ U-05 Engineer builds a Wall. 02346_ K-01 Serf collects debris. 02349_ ALERT: Infestation in the mines, dispatching Demolisher response squad. 02356_ Searching scrap... 02356_ Found Lgt. Treads. 02356_ Found 51 Matter. 02357_ Acquired 51 matter. 02359_ Acquired Lgt. Treads. 02378_ T-07 Excavator system terminally corrupted. 02384_ C-30 ARC bursts open, deploying its payload. 02384_ D-53 Grenadier unfolds itself. 02386_ K-01 Serf collects debris. 02391_ K-01 Serf destroyed. 02394_ Acquired 6 matter. 02397_ Aluminum Leg destroyed. Map ----- +----------------------------------------------------+ | ??#####??????????????????????????????????????????? | | ?## ##?????????????????????????????????????????? | | ?# #?????????????????????????????????????????? | | ?# #?????????????????????????????????????????? | | ??# ##????????????????????????????????????????? | | ??# ##???????????????????????????????????????? | | ??#% ##??????????????????????????????????????? | | #### #######????????????????????????????????? | | #### #????????????????????????????????? | | ##### #????###### ????????????????????? | | ##???# ##??# ????????????????????? | | #######????# ### #?????????????????????? | | ###??????????# #??????????????????????? | | ?????????????# #???????????????????????? | | ?????????????# ##???????????????????????? | | ?????????????## ##????????????????????????? | | ??????????????# ##?????????????????????????? | | ??????????????# #######??????????????????????????? | | ??????????????# #############????????????????????? | | ??????????????# % #????????????????????? | | ??????????????#############d#????????????????????? | | ?????????????????????????##d##???????????????????? | | ?????????????????????????# ##??????????????????? | | ?????????? ????????## #??????????????????? | | ???????????# ### #???????????????????? | | ????????????# aaa @a* #???????????????????? | | ?????????????????# a## #???????????????????? | | ?????????????????## ???#######???????????????????? | | ?????????????????????????????????????????????????? | | ?????????????????????????????????????????????????? | | ?????????????????????????????????????????????????? | | ?????????????????????????????????????????????????? | | ?????????????????????????????????????????????????? | | ?????????????????????????????????????????????????? | | ?????????????????????????????????????????????????? | | ?????????????????????????????????????????????????? | | ?????????????????????????????????????????????????? | | ?????????????????????????????????????????????????? | | ?????????????????????????????????????????????????? | | ?????????????????????????????????????????????????? | | | | | | | | | | | | | | | | | | | | | +----------------------------------------------------+ Best States ------------- Heat Dissipation 56 Energy Generation 14 Energy Capacity 265 Matter Stores 300 Matter Capacity 300 Sight Range 16 Robot Scan Range 14 Terrain Scan Density 10 Base Temperature (-) 100 Armor Coverage 150 Evasion (%) 55 Recoil Reduction 1 Item Schematics ----------------- None Robot Schematics ------------------ None Fabricated ------------ Nothing Alien Tech Used ----------------- None Achievements -------------- None Challenges ------------ None Game ------ Seed 7 Manual? 1 Play Time 00:17:56 Cumulative 28.7 hours Start 2024.10.07 @ 18:55:10 End 2024.10.07 @ 19:11:41 Sessions 1 Manual Loads 0 Difficulty Rogue Special Mode None Game No. 51 Rogue 47 Adventurer 4 Explorer 0 Win Type - Total 2 Types 2/0/0/0/0/0/0/0/0 Lore% 26 Gallery% 28 Achievement% 33 Wizard Run 0 Options --------- Layout 1 ASCII 0 Keyboard 0 Movement Mouse Keybinds 0 Fullscreen 1 Font 32/SmallcapsGlow Map View 50x35 Zoom Use 0% Tactical HUD 1 Map Filters NONE Filters NONE Steam 1 RUN: 4c2d4f0c-51f5-474b-9cb9-5a6a3f0e329b